fUSD/lending_fUSD_20260131
["ID","MTS","AMOUNT","RATE_DAILY","PERIOD"]
[404106243,1769854238183,-1221.01,0.00017037,2]
[404106244,1769854238192,-788.77155359,0.00017046,2]
[404106245,1769854238201,-151.0,0.0001705,2]
[404106246,1769854238210,-187.78006525,0.0001705,2]
[404106247,1769854238219,-1169.40986288,0.00017067,2]
[404106248,1769854238228,-772.96,0.00017069,2]
[404106249,1769854238237,-200.0,0.0001707,2]
[404106250,1769854238247,-186.29,0.00017079,2]
[404106251,1769854238256,-9063.62545183,0.00017089,2]
[404106252,1769854238266,-471.15,0.00017112,2]
[404106253,1769854238275,-868.64,0.00017123,2]
[404106254,1769854238284,-1169.40986288,0.00017233,2]
[404106255,1769854238293,-200.0,0.00017234,2]
[404106256,1769854238302,-587.0,0.00017259,2]
[404106257,1769854238311,-327.23,0.00017261,2]
[404106258,1769854238321,-168.35,0.00017264,2]
[404106259,1769854238329,-1221.01,0.00017311,2]
[404106260,1769854238339,-334.5472959,0.00017323,2]
[404106261,1769854238348,-788.77155359,0.00017331,2]
[404106262,1769854238358,-178.24,0.0001734,2]
[404106263,1769854238368,-422.0,0.00017342,2]
[404106264,1769854238377,-532.0,0.00017342,2]
[404106265,1769854238386,-384.9,0.00017343,2]
[404106266,1769854238395,-614.12720051,0.0001735,2]
[404106267,1769854238405,-200.0,0.00017352,2]
[404106268,1769854238414,-9063.62545183,0.0001736,2]
[404106269,1769854238423,-155.0,0.00017378,2]
[404106270,1769854238433,-2351.0,0.00017384,2]
[404106271,1769854238442,-868.64,0.00017397,2]
[404106272,1769854238450,-1169.40986288,0.000174,2]
[404106273,1769854238459,-1500.0,0.000174,6]
[404106274,1769854238469,-1675.88,0.00017407,2]
[404106275,1769854238477,-361.57,0.00017434,2]
[404106276,1769854238487,-200.0,0.00017436,2]
[404106277,1769854238496,-200.0,0.00017445,2]
[404106278,1769854238506,-500.0,0.00017446,2]
[404106279,1769854238515,-250.928,0.00017447,2]
[404106280,1769854238523,-150.0,0.00017447,2]
[404106281,1769854238532,-616.0,0.00017447,2]
[404106282,1769854238541,-1329.71614085,0.00017447,2]
[404106283,1769854238553,-18.57285915,0.00017447,2]
[404106284,1769854238563,-3480.0,0.00017447,2]
[404106285,1769854238572,-1410.0,0.00017447,2]
[404106286,1769854238582,-1270.0,0.00017447,2]
[404106287,1769854238591,-252.0,0.00017447,2]
[404106288,1769854238601,-151.0,0.00017463,2]
[404106289,1769854238612,-1502.0,0.00017463,2]
[404106290,1769854238623,-544.33797557,0.00017463,2]
[404106291,1769854238633,-1502.0,0.00017463,2]
[404106292,1769854238642,-1502.0,0.00017463,2]
[404106293,1769854238654,-1502.0,0.00017463,2]
[404106294,1769854238664,-534.97384102,0.00017468,2]
[404106295,1769854238674,-1500.0,0.00017468,2]
[404106296,1769854238684,-1500.0,0.00017468,2]
[404106297,1769854238694,-524.96179538,0.00017468,2]
[404106298,1769854238704,-592.47723679,0.00017468,2]
[404106299,1769854238713,-600.000001,0.000175,2]
[404106300,1769854238723,-2100.0,0.000175,6]
[404106301,1769854238733,-1000.0,0.00017501,2]
[404106302,1769854238742,-2694.061,0.00017513,2]
[404106303,1769854238752,-171.863,0.00017513,2]
[404106304,1769854238761,-1394.3,0.00017543,2]
[404106305,1769854238771,-1169.40986288,0.00017567,2]
[404106306,1769854238780,-1221.05195732,0.00017585,2]
[404106307,1769854238790,-151.0,0.00017598,2]
[404106308,1769854238800,-194.72792766,0.00017598,2]
[404106309,1769854238810,-2600.0,0.000176,6]
[404106310,1769854238821,-1286.0,0.00017602,2]
[404106311,1769854238831,-788.77155359,0.00017615,2]
[404106312,1769854238841,-9063.62545183,0.0001763,2]
[404106313,1769854238852,-254.07774535,0.0001764,2]
[404106314,1769854238864,-500.0,0.00017653,2]
[404106315,1769854238875,-868.64,0.00017671,2]
[404106316,1769854238895,-163.0,0.0001768,2]
[404106317,1769854238909,-163.0,0.0001768,2]
[404106318,1769854238919,-500.0,0.000177,6]
[404106319,1769854238929,-471.15,0.00017709,2]
[404106320,1769854238941,-1169.40986288,0.00017733,2]
[404106321,1769854238951,-159.55318298,0.00017765,2]
[404106322,1769854238961,-591.81,0.00017765,2]
[404106323,1769854238971,-3464.858565,0.00017789,2]
[404106324,1769854238981,-500.0,0.000178,6]
[404106325,1769854238991,-500.0,0.00017808,2]
[404106326,1769854239001,-267.7,0.00017823,2]
[404106327,1769854239011,-150.0,0.00017827,2]
[404106328,1769854239021,-150.0,0.00017827,2]
[404106329,1769854239031,-150.0,0.00017827,2]
[404106330,1769854239040,-150.0,0.00017827,2]
[404106331,1769854239050,-500.0,0.00017863,2]
[404106332,1769854239060,-168.35,0.00017897,2]
[404106333,1769854239069,-98.23912215,0.000179,2]
[404106334,1769854239082,-63.76087785,0.000179,2]
[404106335,1769854239092,-162.24,0.000179,2]
[404106336,1769854239101,-614.12720051,0.000179,2]
[404106337,1769854239111,-9063.62545183,0.000179,2]
[404106338,1769854239121,-14670.1929346,0.000179,3]
[404106339,1769854239131,-1169.40986288,0.000179,2]
[404106340,1769854239140,-500.0,0.000179,6]
[404106341,1769854239150,-248.2836007,0.000179,2]
[404106342,1769854239159,-1120.68086004,0.000179,2]
[404106343,1769854239169,-500.0,0.00017918,2]
[404106344,1769854239179,-200.0,0.00017919,2]
[404106345,1769854239188,-218.16,0.00017934,2]
[404106346,1769854239198,-868.64,0.00017945,2]
[404106347,1769854239208,-500.0,0.0001797,2]
[404106348,1769854239218,-227.691484,0.00017972,2]
[404106349,1769854239228,-500.0,0.00017973,2]
[404106350,1769854239238,-501.68734235,0.00017973,2]
[404106351,1769854239248,-500.0,0.00017973,2]
[404106352,1769854239257,-500.0,0.00017973,2]
[404106353,1769854239267,-500.0,0.00017973,2]
[404106354,1769854239277,-500.0,0.00017973,2]
[404106355,1769854239287,-326.63399032,0.00017973,2]
[404106356,1769854239297,-487.41342802,0.00017973,2]
[404106357,1769854239307,-500.0,0.00017973,2]
[404106358,1769854239317,-500.0,0.00017973,2]
[404106359,1769854239327,-292.5328787,0.00017973,2]
[404106360,1769854239337,-500.0,0.00017973,2]
[404106361,1769854239350,-500.0,0.00017973,2]
[404106362,1769854239363,-500.0,0.00017973,2]
[404106363,1769854239373,-500.0,0.00017973,2]
[404106364,1769854239383,-500.0,0.00017973,2]
[404106365,1769854239393,-500.0,0.00017973,2]
[404106366,1769854239404,-173.5802885,0.00017973,2]
[404106367,1769854239414,-500.0,0.00017973,2]
[404106368,1769854239423,-500.0,0.00017973,2]
[404106369,1769854239433,-500.0,0.00017973,2]
[404106370,1769854239443,-500.31115882,0.00017973,2]
[404106371,1769854239452,-500.0,0.00017973,2]
[404106372,1769854239462,-500.0,0.00017973,2]
[404106373,1769854239472,-369.33788734,0.00017973,2]
[404106374,1769854239482,-500.0,0.00017973,2]
[404106375,1769854239492,-500.0,0.00017973,2]
[404106376,1769854239502,-500.0,0.00017973,2]
[404106377,1769854239512,-501.39765573,0.00017973,2]
[404106378,1769854239522,-500.0,0.00017973,2]
[404106379,1769854239531,-503.42877829,0.00017973,2]
[404106380,1769854239541,-576.13737202,0.00017973,2]
[404106381,1769854239551,-500.0,0.00017973,2]
[404106382,1769854239560,-500.0,0.00017973,2]
[404106383,1769854239570,-150.0,0.00017973,2]
[404106384,1769854239580,-1103.0,0.00017973,2]
[404106385,1769854239590,-300.0,0.00017989,2]
[404106386,1769854239601,-43247.53188994,0.0001799,3]
[404106387,1769854239612,-442.66372308,0.0001799,2]
[404106388,1769854239622,-442.66372308,0.0001799,2]
[404106389,1769854239631,-442.66372308,0.0001799,2]
[404106390,1769854239641,-150.0,0.00017999,2]
[404106391,1769854239653,-228.25052272,0.00017999,2]
[404106392,1769854239663,-1010.0361,0.00017999,2]
[404106393,1769854239673,-300.0,0.00017999,2]
[404106394,1769854239683,-500.0,0.00017999,2]
[404106395,1769854239692,-400.08526317,0.00017999,2]
[404106396,1769854239702,-500.0,0.00017999,2]
[404106397,1769854239712,-500.0,0.00017999,2]
[404106398,1769854239722,-500.0,0.00017999,2]
[404106399,1769854239734,-500.0,0.00017999,2]
[404106400,1769854239744,-500.0,0.00017999,2]
[404106401,1769854239755,-500.0,0.00017999,2]
[404106402,1769854239765,-500.0,0.00017999,2]
[404106403,1769854239775,-459.3721329,0.00017999,2]
[404106404,1769854239785,-591.81,0.00017999,2]
[404106405,1769854239794,-591.81,0.00017999,2]
[404106406,1769854239805,-591.81,0.00017999,2]
[404106407,1769854239816,-591.81,0.00017999,2]
[404106408,1769854239826,-591.81,0.00017999,2]
[404106409,1769854239836,-591.81,0.00017999,2]
[404106410,1769854239848,-591.81,0.00017999,2]
[404106411,1769854239859,-592.0131956,0.00017999,2]
[404106412,1769854239868,-117221.25274904,0.00018,2]
[404106413,1769854239912,-300.0,0.00018,2]
[404106414,1769854239923,-1486.89999996,0.00018,2]
[404106417,1769854242256,-788.77155359,0.000179,2]
[404106418,1769854242266,-575.49143361,0.00018,2]
[404106419,1769854242298,-11649.70265951,0.00018,2]
[404106420,1769854242309,-1199.44426882,0.00018,2]
[404106421,1769854242403,-321.26765954,0.00018,2]
[404106422,1769854242414,-1260.78888652,0.00018,2]
[404106423,1769854242430,-567.0,0.00017027,2]
[404106424,1769854242439,-155.14799494,0.00018,2]
[404106425,1769854242450,-13344.9441137,0.00018,2]
[404106426,1769854242461,-895.5214939,0.00018,2]
[404106427,1769854242480,-644.99754507,0.00018,2]
[404106435,1769854243716,-898.70159565,0.00018,2]
[404106436,1769854243730,-13334.80899494,0.00018,2]
[404106437,1769854244043,-539.18345855,0.00018,2]
[404106444,1769854246177,-289.0,0.00017279,2]
[404106445,1769854246187,-52.04,0.00017314,2]
[404106446,1769854246197,-380.05252024,0.00017314,2]
[404106447,1769854246233,-556.90747976,0.00017314,2]
[404106448,1769854246243,-3512.44798952,0.000179,2]
[404106449,1769854246253,-500.0,0.000179,2]
[404106450,1769854246264,-500.0,0.000179,2]
[404106451,1769854246279,-377.74544609,0.000179,2]
[404106463,1769854247339,-151.0,0.0001602,2]
[404106465,1769854247349,-2632.37,0.000179,2]
[404106468,1769854247361,-1876.8110829,0.000179,2]
[404106470,1769854247372,-1739.1709747,0.000179,2]
[404106472,1769854247383,-581.45672485,0.000179,2]
[404106477,1769854247417,-265.60627094,0.000179,2]
[404106479,1769854247429,-965.96953709,0.000179,2]
[404106481,1769854247438,-145946.94166767,0.00018,2]
[404106483,1769854247447,-233899.82958739,0.00018,2]
[404106485,1769854247457,-602.0,0.00018,2]
[404106488,1769854247470,-457.1273058,0.00018,2]
[404106612,1769854440688,10004.0,0.00021,30]
[404106614,1769854638837,-944.19863099,0.00014967,2]
[404106615,1769854638861,-195.0,0.00015069,2]
[404106616,1769854638884,-600.0,0.00015069,2]
[404106617,1769854638908,-250.0,0.00015171,2]
[404106618,1769854638930,-600.0,0.00015264,2]
[404106619,1769854638953,-259.01410694,0.00015275,4]
[404106620,1769854638976,-151.78726207,0.00015375,2]
[404106629,1769855197094,-1314.46411899,0.00014666,2]
[404106644,1769855431907,-200.0,0.00014487,2]
[404106645,1769855431916,-91.65158265,0.00014487,2]
[404106667,1769855437929,-158.34841735,0.00014487,2]
[404106668,1769855437939,-270.0,0.00014487,2]
[404106669,1769855437948,-200.0,0.0001465,2]
[404106671,1769855437958,-1925.53588101,0.00014666,2]
[404106673,1769855437968,-272.27841502,0.00014747,2]
[404106675,1769855437978,-2068.79,0.00014847,2]
[404106677,1769855437987,-600.0,0.0001487,2]
[404106679,1769855437997,-195.0,0.00014893,2]
[404106681,1769855438006,-497.99728662,0.00014915,2]
[404106692,1769855441375,-185.14104865,0.00014915,2]
[404106693,1769855441385,-9.87417346,0.00014944,2]
[404106694,1769855441522,-185.12582654,0.00014944,2]
[404106695,1769855441531,-1343.89864527,0.00014952,2]
[404106706,1769855443065,-151.06135473,0.00014952,2]
[404106707,1769855443075,-300.0,0.00014999,2]
[404106708,1769855443085,-300.0,0.00014999,2]
[404106709,1769855443094,-1187.01613517,0.00014999,2]
[404106710,1769855443106,-12.98386483,0.00014999,2]
[404106711,1769855443115,-300.0,0.00014999,2]
[404106712,1769855443124,-1474.58794177,0.00015,3]
[404106713,1769855443472,-969.01616142,0.00015,3]
[404106714,1769855443493,-7720.0406688,0.00015,3]
[404106715,1769855443604,-146.05156881,0.00015,3]
[404106745,1769855446410,-2488.68,0.00015,3]
[404106751,1769855742019,-211.69,0.00014203,2]
[404106759,1769856128382,73.35264173,0.000141,2]
[404106760,1769856549222,-166.66,0.00013395,2]
[404106761,1769856549242,-250.0,0.00013536,2]
[404106762,1769856549262,-166.66,0.00013677,2]
[404106763,1769856549282,-181.51894334,0.00013774,2]
[404106764,1769856549302,-4452.66253466,0.00013793,2]
[404106805,1769856632712,-441.00787928,0.00013792,2]
[404106810,1769856632801,-758.99212072,0.00013792,2]
[404106812,1769856632810,-300.0,0.00013793,2]
[404106814,1769856632819,-195.0,0.00013793,2]
[404106816,1769856632828,-264.0,0.00013793,2]
[404106818,1769856632838,-24505.13746534,0.00013793,2]
[404106820,1769856632847,-195.0,0.00013811,2]
[404106822,1769856632856,-600.0,0.00013824,2]
[404106824,1769856632866,-291.25,0.00013854,2]
[404106826,1769856632879,-166.66,0.00013959,2]
[404106828,1769856632889,-500.0,0.00013986,2]
[404106830,1769856632898,-76.64735827,0.000141,2]
[404106832,1769856632908,-710.0,0.00014147,2]
[404106834,1769856632918,-166.66,0.00014241,2]
[404106836,1769856632927,-304.0,0.00014284,2]
[404106838,1769856632937,-1063.49,0.0001435,2]
[404106840,1769856632946,-529.0,0.00014395,2]
[404106842,1769856632957,-377.0,0.00014519,2]
[404106844,1769856632966,-166.66,0.00014523,2]
[404106846,1769856632975,-291.25,0.00014547,2]
[404106848,1769856632984,-158.09,0.00014599,2]
[404106850,1769856632993,-158.09,0.00014658,2]
[404106852,1769856633003,-158.09,0.00014717,2]
[404106854,1769856633012,-445.33,0.00014725,2]
[404106856,1769856633021,-500.0,0.00014725,2]
[404106858,1769856633031,-151.0,0.00014725,2]
[404106861,1769856633040,-151.0,0.00014725,2]
[404106863,1769856633050,-151.0,0.00014725,2]
[404106864,1769856633059,-151.0,0.00014725,2]
[404106866,1769856633068,-200.0,0.00014725,2]
[404106868,1769856633078,-151.0,0.00014725,2]
[404106870,1769856633087,-151.0,0.00014725,2]
[404106873,1769856633096,-151.0,0.00014725,2]
[404106875,1769856633106,-151.0,0.00014725,2]
[404106877,1769856633115,-151.0,0.00014725,2]
[404106879,1769856633124,-151.0,0.00014725,2]
[404106881,1769856633133,-151.0,0.00014725,2]
[404106883,1769856633142,-151.0,0.00014725,2]
[404106885,1769856633151,-200.0,0.00014725,2]
[404106887,1769856633161,-151.0,0.00014725,2]
[404106889,1769856633170,-298.89749949,0.00014725,2]
[404106891,1769856633180,-1002.16489748,0.00014732,2]
[404106893,1769856633189,-600.0,0.00014734,2]
[404106895,1769856633198,-195.0,0.00014734,2]
[404106897,1769856633208,-250.0,0.00014734,2]
[404106899,1769856633217,-195.0,0.00014734,2]
[404106901,1769856633226,-250.0,0.00014734,2]
[404106903,1769856633236,-158.09,0.00014776,2]
[404106905,1769856633245,-166.66,0.00014805,2]
[404106907,1769856633258,-158.09,0.00014835,2]
[404106912,1769856633594,-233.18,0.00014853,2]
[404106913,1769856633642,-158.09,0.00014894,2]
[404106914,1769856633653,-1352.99426347,0.000149,2]
[404106915,1769856633662,-500.0,0.00014904,2]
[404106916,1769856633671,-158.09,0.00014953,2]
[404106917,1769856633681,-211.69,0.00014992,2]
[404106918,1769856633690,-445.33,0.00014999,2]
[404106919,1769856633699,-44749.29003033,0.00015,3]
[404106920,1769856633734,-310.2158656,0.00015,3]
[404106921,1769856633746,-7465.04985443,0.00015,3]
[404106925,1769856638089,-295.137,0.00015,3]
[404106987,1769856640238,-11153.65526089,0.00015,3]
[404106988,1769856640250,-250.0,0.00015,2]
[404106989,1769856640262,-158.09,0.00015012,2]
[404106990,1769856640273,-500.0,0.00015038,2]
[404106991,1769856640283,-158.09,0.00015071,2]
[404106992,1769856640293,-158.09,0.0001513,2]
[404106993,1769856640303,-14529.8922,0.00015152,2]
[404106994,1769856640314,-500.0,0.0001517,2]
[404106995,1769856640324,-500.0,0.0001517,2]
[404106996,1769856640334,-500.0,0.0001517,2]
[404106997,1769856640343,-322.30340845,0.0001517,2]
[404106998,1769856640352,-500.0,0.0001517,2]
[404106999,1769856640361,-500.0,0.0001517,2]
[404107000,1769856640370,-500.0,0.0001517,2]
[404107001,1769856640379,-1680.0,0.00015171,2]
[404107002,1769856640388,-300.0,0.00015171,2]
[404107003,1769856640398,-195.0,0.00015171,2]
[404107004,1769856640407,-250.0,0.00015171,2]
[404107005,1769856640416,-600.0,0.00015173,2]
[404107006,1769856640426,-502.27711246,0.00015173,2]
[404107007,1769856640435,-2500.0,0.00015173,2]
[404107008,1769856640444,-1121.06156478,0.00015173,2]
[404107009,1769856640454,-158.09,0.00015189,2]
[404107010,1769856640463,-1946.49691704,0.00015207,2]
[404107011,1769856640472,-10662.6919,0.00015225,2]
[404107012,1769856640482,-1000.0,0.00015225,2]
[404107013,1769856640491,-291.25,0.0001524,2]
[404107014,1769856640500,-158.09,0.00015248,2]
[404107015,1769856640509,-445.33,0.00015273,2]
[404107016,1769856640518,-244.43530043,0.00015273,2]
[404107017,1769856640527,-2275.3529,0.00015289,2]
[404107018,1769856640536,-158.09,0.00015307,2]
[404107019,1769856640545,-156.91177194,0.00015325,2]
[404107020,1769856640554,-1708.30110345,0.00015325,2]
[404107021,1769856640563,-12284.22074101,0.00015325,2]
[404107022,1769856640572,-188.74513068,0.00015325,2]
[404107023,1769856640581,-4463.38824156,0.00015352,2]
[404107024,1769856640590,-158.09,0.00015366,2]
[404107025,1769856640600,-257.12757126,0.00015388,2]
[404107026,1769856640611,-500.0,0.00015388,2]
[404107027,1769856640622,-359.30995449,0.00015388,2]
[404107028,1769856640631,-231.92754772,0.00015388,2]
[404107029,1769856640640,-500.0,0.00015388,2]
[404107030,1769856640650,-322185.73827488,0.00015389,2]
[404107031,1769856640662,-86902.29321546,0.00015389,2]
[404107032,1769856640740,-8746.99159199,0.00015389,2]
[404107033,1769856640751,-3391.30098773,0.00015389,2]
[404107034,1769856640762,-20002.3317,0.00015389,2]
[404107035,1769856640810,-584.87500014,0.00015389,2]
[404107036,1769856640821,-738.34873444,0.00015389,2]
[404107049,1769856643979,-8805.80521004,0.00015389,2]
[404107054,1769856646421,-473.92830005,0.00015389,2]
[404107055,1769856646505,-515.0410575,0.00015389,2]
[404107056,1769856646551,-3829.76329417,0.00015389,2]
[404107064,1769856928817,6851.48,0.00011835,2]
[404107088,1769857596542,-322.73196042,0.00013299,2]
[404107089,1769857784461,-1492.90782458,0.00013257,2]
[404107090,1769857799080,-1492.90782458,0.0001319,2]
[404107091,1769857800797,-1251.80770273,0.0001319,2]
[404107092,1769857805181,-258.0,0.0001319,2]
[404107093,1769857805204,-44.11367056,0.0001319,2]
[404107094,1769857807781,-288.62836425,0.0001319,2]
[404107103,1769857832139,-393.91814974,0.0001319,2]
[404107104,1769857832150,-1028.25764269,0.0001319,2]
[404107105,1769857832161,-193.45689345,0.0001319,2]
[404107106,1769857832171,-129.13632043,0.00013324,2]
[404107107,1769857832201,-253.91174776,0.00013324,2]
[404107108,1769857832211,-502.27711246,0.00013349,2]
[404107109,1769857832221,-300.0,0.00013349,2]
[404107110,1769857832232,-396.78274656,0.00013367,2]
[404107111,1769857832242,-199.60938011,0.00013399,2]
[404107112,1769857832251,-199.60938011,0.00013399,2]
[404107113,1769857832261,-1200.0,0.00013466,2]
[404107114,1769857832270,-524.17591745,0.00013467,2]
[404107115,1769857832279,-300.0,0.00013801,2]
[404107116,1769857832288,-300.0,0.00013801,2]
[404107117,1769857832298,-500.0,0.00013832,2]
[404107119,1769857832307,-485.31,0.00013885,2]
[404107120,1769857832317,-1024.0,0.00013907,2]
[404107121,1769857832326,-300.0,0.00013907,2]
[404107122,1769857832335,-393.18,0.00014123,2]
[404107123,1769857832344,-396.78274656,0.0001416,2]
[404107124,1769857832354,-177.93078691,0.0001421,2]
[404107126,1769857832363,-1486.4146684,0.00014309,2]
[404107128,1769857832372,-557.72,0.00014382,2]
[404107130,1769857832381,-1000.0,0.0001442,2]
[404107132,1769857832390,-3279.44,0.00014504,2]
[404107134,1769857832399,-250.0,0.00014509,2]
[404107136,1769857832409,-250.0,0.00014604,2]
[404107138,1769857832418,-150.0,0.00014628,2]
[404107140,1769857832427,-600.0,0.00014629,2]
[404107142,1769857832436,-600.0,0.00014629,2]
[404107143,1769857832446,-218.29161671,0.00014629,2]
[404107144,1769857832455,-500.0,0.00014629,2]
[404107145,1769857832465,-2500.0,0.00014629,2]
[404107146,1769857832475,-2500.0,0.00014629,2]
[404107147,1769857832484,-1121.06156478,0.00014629,2]
[404107148,1769857832494,-201.39873488,0.00014629,2]
[404107149,1769857832508,-300.0,0.00014629,2]
[404107150,1769857832519,-195.0,0.00014629,2]
[404107151,1769857832529,-250.0,0.00014629,2]
[404107152,1769857832539,-195.0,0.00014629,2]
[404107153,1769857832548,-195.0,0.00014629,2]
[404107154,1769857832558,-500.0,0.00014791,2]
[404107155,1769857832568,-500.0,0.00014791,2]
[404107156,1769857832577,-500.0,0.00014791,2]
[404107157,1769857832587,-500.0,0.00014791,2]
[404107158,1769857832596,-500.0,0.00014791,2]
[404107160,1769857832605,-500.0,0.00014791,2]
[404107161,1769857832614,-500.0,0.00014791,2]
[404107162,1769857832625,-500.0,0.00014791,2]
[404107163,1769857832635,-500.0,0.00014791,2]
[404107164,1769857832644,-500.0,0.00014791,2]
[404107165,1769857832654,-500.0,0.00014791,2]
[404107166,1769857832664,-500.0,0.00014791,2]
[404107167,1769857832673,-151.0,0.00014791,2]
[404107168,1769857832683,-500.0,0.00014791,2]
[404107169,1769857832693,-151.0,0.00014791,2]
[404107170,1769857832702,-500.0,0.00014791,2]
[404107171,1769857832713,-151.0,0.00014791,2]
[404107172,1769857832722,-500.0,0.00014791,2]
[404107173,1769857832732,-151.0,0.00014791,2]
[404107174,1769857832742,-500.0,0.00014791,2]
[404107175,1769857832751,-151.0,0.00014791,2]
[404107176,1769857832760,-500.0,0.00014791,2]
[404107177,1769857832771,-151.0,0.00014791,2]
[404107178,1769857832781,-500.0,0.00014791,2]
[404107179,1769857832790,-500.0,0.00014791,2]
[404107180,1769857832800,-151.0,0.00014791,2]
[404107181,1769857832809,-500.0,0.00014791,2]
[404107182,1769857832820,-151.0,0.00014791,2]
[404107183,1769857832829,-500.0,0.00014791,2]
[404107184,1769857832839,-151.0,0.00014791,2]
[404107185,1769857832848,-151.0,0.00014791,2]
[404107186,1769857832857,-500.0,0.00014791,2]
[404107187,1769857832866,-151.0,0.00014791,2]
[404107188,1769857832876,-244.43530043,0.00014791,2]
[404107189,1769857832885,-2124.892,0.00014798,2]
[404107190,1769857832895,-171.864,0.00014798,2]
[404107191,1769857832904,-1680.0,0.00014813,2]
[404107192,1769857832914,-396.78274656,0.00014952,2]
[404107193,1769857832923,-1226.60944355,0.00014973,2]
[404107194,1769857832932,-1489.12501748,0.00014973,2]
[404107195,1769857832942,-240.56,0.00015014,2]
[404107196,1769857832951,-166.83,0.00015034,2]
[404107197,1769857832961,-500.0,0.00015051,2]
[404107198,1769857832970,-500.0,0.00015051,2]
[404107199,1769857832980,-433.33139578,0.00015051,2]
[404107200,1769857832991,-500.0,0.00015051,2]
[404107201,1769857833004,-500.0,0.00015051,2]
[404107202,1769857833013,-500.0,0.00015051,2]
[404107203,1769857833023,-500.0,0.00015051,2]
[404107204,1769857833033,-500.0,0.00015051,2]
[404107205,1769857833043,-500.0,0.00015051,2]
[404107206,1769857833052,-500.0,0.00015051,2]
[404107207,1769857833061,-500.0,0.00015051,2]
[404107208,1769857833071,-500.0,0.00015051,2]
[404107209,1769857833081,-500.0,0.00015051,2]
[404107210,1769857833091,-500.0,0.00015051,2]
[404107211,1769857833100,-156.91177194,0.00015052,2]
[404107212,1769857833110,-188.74513068,0.00015052,2]
[404107213,1769857833120,-12284.22074101,0.00015052,2]
[404107214,1769857833129,-89275.276,0.00015052,2]
[404107215,1769857833139,-420.0,0.00015123,2]
[404107216,1769857833148,-158.42425971,0.00015142,2]
[404107217,1769857833158,-526.77967755,0.00015151,2]
[404107218,1769857833168,-831.71,0.00015151,2]
[404107219,1769857833177,-511.52174007,0.00015151,2]
[404107220,1769857833186,-504.25758455,0.00015151,2]
[404107221,1769857833195,-500.0,0.00015151,2]
[404107222,1769857833205,-338.17556821,0.00015151,2]
[404107223,1769857833214,-380.18570387,0.00015151,2]
[404107224,1769857833223,-500.0,0.00015151,2]
[404107225,1769857833233,-500.0,0.00015151,2]
[404107226,1769857833242,-388.67106812,0.00015151,2]
[404107227,1769857833251,-666.0,0.00015151,2]
[404107228,1769857833260,-7809.39281154,0.00015152,2]
[404107229,1769857833273,-24014.27173969,0.00015152,2]
[404107230,1769857833293,-260.03248731,0.00015152,2]
[404107231,1769857833304,-11215.31893508,0.00015152,2]
[404107232,1769857833341,-501.01040161,0.00015152,2]
[404107233,1769857833352,-3669.89764967,0.00015152,2]
[404107234,1769857833363,-1403.3982886,0.00015152,2]
[404107235,1769857833375,-1377.69079332,0.00015152,2]
[404107236,1769857833385,-3334.76220405,0.00015152,2]
[404107237,1769857833396,-1957.15258626,0.00015152,2]
[404107238,1769857833536,-17603.99911983,0.00015152,2]
[404107239,1769857838434,-2301.30594,0.00015152,2]
[404107240,1769857838446,-3810.66027988,0.00015152,2]
[404107241,1769857838458,-305.96311241,0.00015152,2]
[404107263,1769857840300,-875.29107979,0.00015152,2]
[404107264,1769857840354,-54560.72397096,0.00015152,2]